[Event "Klubbmästerskap 2025 Torsdagar"]
[Site "Linköping, Sweden"]
[Date "2025.03.20"]
[Round "7.1"]
[White "Westerberg, Hampus"]
[Black "Halvarsson, Peter"]
[Result "0-1"]
[TimeControl "90 min + 30 sec/move"]
[WhiteElo "1851"]
[BlackElo "1927"]

1. e4 {[%clk 01:30:48]} {[%emt 00:00:02]} d5 {[%clk 01:30:45]} {[%emt
00:00:24]} 2. exd5 {[%clk 01:31:12]} {[%emt 00:00:06]} Qxd5 {[%clk 01:31:11]}
{[%emt 00:00:04]} 3. Nc3 {[%clk 01:31:35]} {[%emt 00:00:07]} Qa5 {[%clk
01:31:37]} {[%emt 00:00:04]} 4. d4 {[%clk 01:31:47]} {[%emt 00:00:18]} c6
{[%clk 01:32:01]} {[%emt 00:00:05]} 5. Bc4 {[%clk 01:32:13]} {[%emt 00:00:04]}
Nf6 {[%clk 01:32:08]} {[%emt 00:00:23]} 6. Nf3 {[%clk 01:32:18]} {[%emt
00:00:25]} Bf5 {[%clk 01:32:24]} {[%emt 00:00:13]} 7. Bd2 {[%clk 01:31:01]}
{[%emt 00:01:47]} e6 {[%clk 01:28:45]} {[%emt 00:04:09]} 8. a3 {[%clk
01:18:11]} {[%emt 00:13:20]} Nbd7 {[%clk 01:24:20]} {[%emt 00:04:55]} 9. Bb3
{[%clk 01:15:56]} {[%emt 00:02:46]} Qa6 {[%clk 01:15:19]} {[%emt 00:09:31]} 10.
Nh4 {[%clk 01:06:39]} {[%emt 00:09:46]} Bg6 {[%clk 01:13:37]} {[%emt 00:02:12]}
11. Nxg6 {[%clk 01:06:57]} {[%emt 00:00:12]} hxg6 {[%clk 01:14:01]} {[%emt
00:00:06]} 12. Qf3 {[%clk 01:06:07]} {[%emt 00:01:19]} O-O-O {[%clk 01:09:07]}
{[%emt 00:05:24]} 13. O-O-O {[%clk 01:05:52]} {[%emt 00:00:45]} Nb6 {[%clk
00:57:53]} {[%emt 00:11:45]} 14. Bg5 {[%clk 00:59:46]} {[%emt 00:06:35]} Rd7
{[%clk 00:36:07]} {[%emt 00:22:16]} 15. Bxf6 {[%clk 00:52:07]} {[%emt
00:07:58]} gxf6 {[%clk 00:36:31]} {[%emt 00:00:18]} 16. Qxf6 {[%clk 00:52:00]}
{[%emt 00:00:37]} Rh5 {[%clk 00:36:17]} {[%emt 00:00:44]} 17. Bxe6 {[%clk
00:41:05]} {[%emt 00:11:25]} Bh6+ {[%clk 00:36:09]} {[%emt 00:00:38]} 18. Kb1
{[%clk 00:41:16]} {[%emt 00:00:20]} fxe6 {[%clk 00:35:30]} {[%emt 00:01:08]} 19.
Qxg6 {[%clk 00:41:20]} {[%emt 00:00:25]} Qa5 {[%clk 00:20:39]} {[%emt
00:15:22]} 20. Qxe6 {[%clk 00:36:00]} {[%emt 00:05:50]} Bg7 {[%clk 00:19:16]}
{[%emt 00:01:53]} 21. g4 {[%clk 00:23:38]} {[%emt 00:12:52]} Rh3 {[%clk
00:16:08]} {[%emt 00:03:39]} 22. f4 {[%clk 00:20:35]} {[%emt 00:03:33]} Rxc3
{[%clk 00:10:29]} {[%emt 00:06:09]} 23. bxc3 {[%clk 00:20:48]} {[%emt
00:00:17]} Nd5 {[%clk 00:09:38]} {[%emt 00:01:21]} 24. Qg8+ {[%clk 00:16:03]}
{[%emt 00:05:14]} Kc7 {[%clk 00:09:29]} {[%emt 00:00:39]} 25. Rd3 {[%clk
00:08:48]} {[%emt 00:07:46]} Qxa3 {[%clk 00:08:30]} {[%emt 00:01:30]} 26. Re1
{[%clk 00:08:32]} {[%emt 00:00:45]} Nxc3+ {[%clk 00:08:19]} {[%emt 00:00:41]}
27. Rxc3 {[%clk 00:08:41]} {[%emt 00:00:21]} Qxc3 {[%clk 00:08:43]} {[%emt
00:00:06]} 28. Re4 {[%clk 00:08:10]} {[%emt 00:01:00]} Bxd4 {[%clk 00:08:23]}
{[%emt 00:00:51]} 29. Qa2 {[%clk 00:07:04]} {[%emt 00:01:36]} Be3 {[%clk
00:06:46]} {[%emt 00:02:07]} 0-1

[Event "Klubbmästerskap 2025 Torsdagar"]
[Site "Linköping, Sweden"]
[Date "2025.03.20"]
[Round "7.2"]
[White "Nagy, Mate 2009"]
[Black "Roginski, Hugo"]
[Result "1/2-1/2"]
[TimeControl "90 min + 30 sec/move"]
[WhiteElo "1917"]
[BlackElo "1884"]

1. e4 {[%clk 01:30:57]} {[%emt 00:00:02]} e5 {[%clk 01:30:56]} {[%emt
00:00:04]} 2. Nf3 {[%clk 01:31:15]} {[%emt 00:00:12]} Nc6 {[%clk 01:31:22]}
{[%emt 00:00:04]} 3. Bb5 {[%clk 01:31:40]} {[%emt 00:00:05]} a6 {[%clk
01:31:47]} {[%emt 00:00:05]} 4. Ba4 {[%clk 01:32:07]} {[%emt 00:00:04]} Nf6
{[%clk 01:32:12]} {[%emt 00:00:04]} 5. O-O {[%clk 01:32:27]} {[%emt 00:00:11]}
Be7 {[%clk 01:32:34]} {[%emt 00:00:07]} 6. Re1 {[%clk 01:32:42]} {[%emt
00:00:15]} b5 {[%clk 01:33:00]} {[%emt 00:00:05]} 7. Bb3 {[%clk 01:33:10]}
{[%emt 00:00:03]} O-O {[%clk 01:33:25]} {[%emt 00:00:04]} 8. a4 {[%clk
01:33:27]} {[%emt 00:00:13]} Bb7 {[%clk 01:33:19]} {[%emt 00:00:35]} 9. d3
{[%clk 01:33:14]} {[%emt 00:00:43]} d6 {[%clk 01:30:50]} {[%emt 00:03:00]} 10.
Nbd2 {[%clk 01:32:55]} {[%emt 00:00:49]} Na5 {[%clk 01:27:09]} {[%emt
00:04:11]} 11. c3 {[%clk 01:28:40]} {[%emt 00:04:45]} Nxb3 {[%clk 01:25:58]}
{[%emt 00:01:41]} 12. Qxb3 {[%clk 01:25:54]} {[%emt 00:03:15]} Bc6 {[%clk
01:19:29]} {[%emt 00:06:59]} 13. a5 {[%emt 00:01:15]} Re8 {[%clk 01:18:41]}
{[%emt 00:01:14]} 14. Nf1 {[%clk 01:21:32]} {[%emt 00:04:11]} Bf8 {[%clk
01:16:13]} {[%emt 00:03:00]} 15. Bg5 {[%clk 01:19:35]} {[%emt 00:02:26]} g6
{[%clk 01:01:23]} {[%emt 00:15:21]} 16. Ne3 {[%clk 01:18:06]} {[%emt 00:01:59]}
Bg7 {[%clk 01:00:53]} {[%emt 00:01:00]} 17. Ng4 {[%clk 01:08:13]} {[%emt
00:10:23]} Bd7 {[%clk 00:57:06]} {[%emt 00:04:18]} 18. Bxf6 {[%clk 01:04:55]}
{[%emt 00:03:47]} Bxf6 {[%clk 00:57:27]} {[%emt 00:00:09]} 19. Ne3 {[%clk
01:03:29]} {[%emt 00:01:56]} c6 {[%clk 00:54:29]} {[%emt 00:03:29]} 20. Qc2
{[%clk 00:57:42]} {[%emt 00:06:17]} Qc7 {[%clk 00:51:25]} {[%emt 00:03:34]} 21.
c4 {[%clk 00:56:43]} {[%emt 00:01:29]} Rab8 {[%clk 00:47:18]} {[%emt 00:04:35]}
22. cxb5 {[%clk 00:54:12]} {[%emt 00:03:03]} Rxb5 {[%clk 00:47:34]} {[%emt
00:00:14]} 23. Nd5 {[%clk 00:53:36]} {[%emt 00:01:06]} Qd8 {[%clk 00:46:09]}
{[%emt 00:01:55]} 24. Nb6 {[%clk 00:53:39]} {[%emt 00:00:27]} Rc5 {[%clk
00:43:39]} {[%emt 00:03:00]} 25. Qd2 {[%clk 00:50:56]} {[%emt 00:03:12]} Be6
{[%clk 00:39:06]} {[%emt 00:05:03]} 26. d4 {[%clk 00:45:17]} {[%emt 00:06:10]}
exd4 {[%clk 00:31:10]} {[%emt 00:08:25]} 27. Nxd4 {[%clk 00:44:46]} {[%emt
00:01:02]} Bxd4 {[%clk 00:29:53]} {[%emt 00:01:47]} 28. Qxd4 {[%clk 00:45:00]}
{[%emt 00:00:17]} Rh5 {[%clk 00:20:56]} {[%emt 00:09:25]} 29. Re3 {[%clk
00:41:42]} {[%emt 00:03:48]} Qc7 {[%clk 00:17:45]} {[%emt 00:03:41]} 30. g3
{[%clk 00:38:35]} {[%emt 00:03:37]} Re5 {[%clk 00:12:57]} {[%emt 00:05:18]} 31.
f4 {[%clk 00:33:13]} {[%emt 00:05:52]} Rb5 {[%clk 00:12:09]} {[%emt 00:01:18]}
32. Rd3 {[%clk 00:31:55]} {[%emt 00:01:48]} Rd8 {[%clk 00:11:44]} {[%emt
00:00:56]} 33. e5 {[%clk 00:31:30]} {[%emt 00:00:55]} d5 {[%clk 00:11:48]}
{[%emt 00:00:26]} 34. b4 {[%clk 00:21:36]} {[%emt 00:10:24]} c5 {[%clk
00:10:49]} {[%emt 00:01:29]} 35. bxc5 {[%clk 00:21:55]} {[%emt 00:00:11]} Rxc5
{[%clk 00:11:13]} {[%emt 00:00:06]} 36. Rdd1 {[%clk 00:20:03]} {[%emt
00:02:22]} Bg4 {[%clk 00:09:08]} {[%emt 00:02:35]} 37. Rd2 {[%clk 00:18:37]}
{[%emt 00:01:56]} Bf3 {[%clk 00:08:02]} {[%emt 00:01:36]} 38. Rf1 {[%clk
00:17:41]} {[%emt 00:01:26]} Rc1 {[%clk 00:05:32]} {[%emt 00:03:00]} 39. Rdf2
{[%clk 00:17:24]} {[%emt 00:00:47]} Be4 {[%clk 00:05:17]} {[%emt 00:00:44]} 40.
Qd2 {[%clk 00:12:58]} {[%emt 00:04:57]} Rc2 {[%clk 00:04:11]} {[%emt 00:01:37]}
41. Qe3 {[%clk 00:10:39]} {[%emt 00:02:48]} Rc5 {[%clk 00:03:59]} {[%emt
00:00:41]} 42. Ra1 {[%clk 00:09:00]} {[%emt 00:02:10]} Bf5 {[%clk 00:03:56]}
{[%emt 00:00:34]} 43. Qd4 {[%clk 00:05:54]} {[%emt 00:03:36]} Be4 {[%clk
00:03:03]} {[%emt 00:01:23]} 1/2-1/2

[Event "Klubbmästerskap 2025 Torsdagar"]
[Site "Linköping, Sweden"]
[Date "2025.03.20"]
[Round "7.3"]
[White "Pettersson, Börje"]
[Black "Gustafsson, Nils"]
[Result "0-1"]
[TimeControl "90 min + 30 sec/move"]
[WhiteElo "1906"]
[BlackElo "1860"]

1. e4 {[%clk 01:30:46]} {[%emt 00:00:13]} e5 {[%clk 01:30:38]} {[%emt
00:00:23]} 2. Nf3 {[%clk 01:30:58]} {[%emt 00:00:18]} Nc6 {[%clk 01:31:00]}
{[%emt 00:00:08]} 3. Bb5 {[%clk 01:31:03]} {[%emt 00:00:25]} a6 {[%clk
01:30:41]} {[%emt 00:00:49]} 4. Ba4 {[%clk 01:31:09]} {[%emt 00:00:24]} Nf6
{[%clk 01:30:38]} {[%emt 00:00:33]} 5. O-O {[%clk 01:31:19]} {[%emt 00:00:19]}
Nxe4 {[%clk 01:30:48]} {[%emt 00:00:20]} 6. d4 {[%clk 01:31:29]} {[%emt
00:00:20]} b5 {[%clk 01:30:55]} {[%emt 00:00:24]} 7. Bb3 {[%clk 01:31:52]}
{[%emt 00:00:06]} d5 {[%clk 01:31:08]} {[%emt 00:00:17]} 8. dxe5 {[%clk
01:31:58]} {[%emt 00:00:23]} Be6 {[%clk 01:31:19]} {[%emt 00:00:20]} 9. Qe2
{[%clk 01:31:21]} {[%emt 00:01:06]} Be7 {[%clk 01:28:40]} {[%emt 00:03:10]} 10.
Rd1 {[%clk 01:30:10]} {[%emt 00:01:41]} Nc5 {[%clk 01:18:07]} {[%emt 00:11:04]}
11. c4 {[%clk 01:22:55]} {[%emt 00:07:45]} Nxb3 {[%clk 01:16:54]} {[%emt
00:01:44]} 12. axb3 {[%clk 01:20:23]} {[%emt 00:03:01]} bxc4 {[%clk 01:14:48]}
{[%emt 00:02:36]} 13. bxc4 {[%clk 01:20:27]} {[%emt 00:00:24]} d4 {[%clk
01:13:34]} {[%emt 00:01:46]} 14. Qe4 {[%clk 01:12:27]} {[%emt 00:08:30]} Bd7
{[%clk 01:01:01]} {[%emt 00:13:04]} 15. Nxd4 {[%clk 01:07:14]} {[%emt
00:05:42]} Nxd4 {[%emt 00:00:11]} 16. Qxd4 {[%clk 01:06:21]} {[%emt 00:01:22]}
c5 {[%clk 01:01:11]} {[%emt 00:00:40]} 17. Qd5 {[%clk 01:04:59]} {[%emt
00:01:52]} Ra7 {[%clk 00:59:45]} {[%emt 00:01:56]} 18. Nc3 {[%clk 00:59:17]}
{[%emt 00:06:12]} O-O {[%clk 00:49:29]} {[%emt 00:10:46]} 19. Nb5 {[%clk
00:43:30]} {[%emt 00:16:17]} Bxb5 {[%clk 00:49:29]} {[%emt 00:00:29]} 20. Qxd8
{[%clk 00:43:34]} {[%emt 00:00:26]} Rxd8 {[%clk 00:49:25]} {[%emt 00:00:34]} 21.
Rxd8+ {[%clk 00:43:40]} {[%emt 00:00:25]} Bxd8 {[%clk 00:49:46]} {[%emt
00:00:08]} 22. cxb5 {[%clk 00:43:59]} {[%emt 00:00:11]} Rd7 {[%clk 00:49:25]}
{[%emt 00:00:51]} 23. Be3 {[%clk 00:43:41]} {[%emt 00:00:48]} axb5 {[%clk
00:36:04]} {[%emt 00:13:50]} 24. Bxc5 {[%clk 00:43:56]} {[%emt 00:00:17]} Rd5
{[%clk 00:35:33]} {[%emt 00:01:00]} 25. Bb4 {[%clk 00:24:57]} {[%emt 00:19:29]}
h5 {[%clk 00:32:50]} {[%emt 00:03:13]} 26. Kf1 {[%clk 00:21:07]} {[%emt
00:04:20]} Kh7 {[%clk 00:31:57]} {[%emt 00:01:23]} 27. f4 {[%clk 00:19:09]}
{[%emt 00:02:28]} Rd4 {[%clk 00:31:37]} {[%emt 00:00:50]} 28. Bd6 {[%clk
00:10:01]} {[%emt 00:09:37]} Rxf4+ {[%clk 00:31:32]} {[%emt 00:00:36]} 29. Ke2
{[%clk 00:10:22]} {[%emt 00:00:10]} Bb6 {[%clk 00:26:38]} {[%emt 00:05:24]} 30.
Rf1 {[%clk 00:10:42]} {[%emt 00:00:09]} Rxf1 {[%clk 00:25:02]} {[%emt
00:02:05]} 31. Kxf1 {[%clk 00:11:05]} {[%emt 00:00:08]} Bd4 {[%clk 00:24:28]}
{[%emt 00:01:05]} 32. b3 {[%clk 00:11:25]} {[%emt 00:00:10]} Kg6 {[%clk
00:24:35]} {[%emt 00:00:23]} 33. Ke2 {[%clk 00:04:11]} {[%emt 00:07:44]} Kf5
{[%clk 00:24:47]} {[%emt 00:00:18]} 34. h3 {[%clk 00:04:40]} Bxe5 {[%clk
00:24:47]} {[%emt 00:00:31]} 35. Bf8 {[%clk 00:04:54]} {[%emt 00:00:16]} Ke4
{[%clk 00:23:16]} {[%emt 00:02:01]} 36. Kd2 {[%clk 00:04:52]} {[%emt 00:00:33]}
g5 {[%clk 00:14:45]} {[%emt 00:09:02]} 37. Ke2 {[%clk 00:05:04]} {[%emt
00:00:17]} f5 {[%clk 00:14:36]} {[%emt 00:00:38]} 38. Be7 {[%clk 00:05:11]}
{[%emt 00:00:24]} g4 {[%clk 00:13:40]} {[%emt 00:01:27]} 39. hxg4 {[%clk
00:05:12]} {[%emt 00:00:29]} hxg4 {[%clk 00:14:00]} {[%emt 00:00:10]} 40. Bc5
{[%clk 00:04:56]} {[%emt 00:00:46]} Kd5 {[%clk 00:13:01]} {[%emt 00:01:29]} 41.
Bb4 {[%clk 00:04:38]} {[%emt 00:00:48]} Bd6 {[%clk 00:12:50]} {[%emt 00:00:40]}
42. Bc3 {[%clk 00:04:19]} {[%emt 00:00:50]} Ke4 {[%clk 00:12:22]} {[%emt
00:00:57]} 43. Bf6 {[%clk 00:03:31]} {[%emt 00:01:18]} Be5 {[%clk 00:11:58]}
{[%emt 00:00:54]} 44. Be7 {[%clk 00:03:38]} {[%emt 00:00:24]} f4 {[%clk
00:11:53]} {[%emt 00:00:35]} 45. Bh4 {[%clk 00:02:47]} {[%emt 00:01:22]} Bd4
{[%clk 00:09:22]} {[%emt 00:03:00]} 46. Bg5 {[%clk 00:01:10]} {[%emt 00:02:07]}
Be3 {[%clk 00:08:37]} {[%emt 00:01:15]} 47. Bf6 {[%clk 00:01:22]} {[%emt
00:00:17]} f3+ {[%clk 00:08:42]} {[%emt 00:00:26]} 48. gxf3+ {[%clk 00:01:49]}
{[%emt 00:00:03]} gxf3+ {[%clk 00:08:55]} {[%emt 00:00:16]} 49. Kd1 {[%clk
00:01:22]} {[%emt 00:00:57]} Kd3 {[%clk 00:09:11]} {[%emt 00:00:14]} 50. Be5
{[%clk 00:01:26]} {[%emt 00:00:27]} f2 {[%clk 00:09:44]} {[%emt 00:00:28]} 0-1

[Event "Klubbmästerskap 2025 Torsdagar"]
[Site "Linköping, Sweden"]
[Date "2025.03.20"]
[Round "7.4"]
[White "Ståhlberg, Adam"]
[Black "Skytt, Klas"]
[Result "1-0"]
[TimeControl "90 min + 30 sec/move"]
[WhiteElo "1944"]
[BlackElo "1764"]

1. d4 {[%clk 01:30:54]} {[%emt 00:00:05]} d5 {[%clk 01:30:43]} {[%emt
00:00:17]} 2. c4 {[%clk 01:31:18]} {[%emt 00:00:06]} e6 {[%clk 01:30:31]}
{[%emt 00:00:42]} 3. cxd5 {[%clk 01:30:52]} {[%emt 00:00:56]} exd5 {[%clk
01:30:45]} {[%emt 00:00:16]} 4. Nc3 {[%clk 01:31:15]} {[%emt 00:00:08]} c6
{[%clk 01:30:34]} {[%emt 00:00:42]} 5. Nf3 {[%clk 01:31:32]} {[%emt 00:00:12]}
Bd6 {[%clk 01:28:10]} {[%emt 00:02:53]} 6. Bg5 {[%clk 01:31:33]} {[%emt
00:00:29]} Qc7 {[%clk 01:27:43]} {[%emt 00:00:57]} 7. e3 {[%clk 01:31:28]}
{[%emt 00:00:35]} h6 {[%clk 01:27:15]} {[%emt 00:00:57]} 8. Bh4 {[%clk
01:31:51]} {[%emt 00:00:08]} Bf5 {[%clk 01:27:23]} {[%emt 00:00:22]} 9. Bd3
{[%clk 01:29:53]} {[%emt 00:02:28]} Bxd3 {[%clk 01:27:03]} {[%emt 00:00:51]} 10.
Qxd3 {[%clk 01:30:16]} {[%emt 00:00:06]} Nd7 {[%clk 01:24:24]} {[%emt
00:03:09]} 11. Rc1 {[%clk 01:29:03]} {[%emt 00:01:43]} Qb8 {[%clk 01:22:03]}
{[%emt 00:02:51]} 12. e4 {[%clk 01:19:40]} {[%emt 00:09:53]} Bf4 {[%clk
01:12:18]} {[%emt 00:10:14]} 13. Rc2 {[%clk 01:16:41]} {[%emt 00:03:29]} dxe4
{[%clk 01:07:51]} {[%emt 00:04:58]} 14. Qxe4+ {[%clk 01:15:24]} {[%emt
00:01:47]} Kf8 {[%clk 01:07:54]} {[%emt 00:00:27]} 15. Re2 {[%clk 01:13:13]}
{[%emt 00:02:42]} Bd6 {[%clk 00:46:04]} {[%emt 00:22:19]} 16. Ne5 {[%clk
00:59:03]} {[%emt 00:14:40]} Qc7 {[%clk 00:37:39]} {[%emt 00:08:55]} 17. O-O
{[%clk 00:58:04]} {[%emt 00:01:28]} Ngf6 {[%clk 00:34:27]} {[%emt 00:03:44]} 18.
Nxd7+ {[%clk 00:49:34]} {[%emt 00:09:00]} Nxd7 {[%clk 00:32:02]} {[%emt
00:02:54]} 19. Be7+ {[%clk 00:47:36]} {[%emt 00:02:27]} Kg8 {[%clk 00:32:14]}
{[%emt 00:00:18]} 20. Qh4 {[%clk 00:30:37]} {[%emt 00:17:29]} Nb6 {[%clk
00:28:41]} {[%emt 00:04:04]} 21. Rfe1 {[%clk 00:30:17]} {[%emt 00:00:50]} Nd5
{[%clk 00:27:24]} {[%emt 00:01:47]} 22. Nxd5 {[%clk 00:30:13]} {[%emt
00:00:34]} cxd5 {[%clk 00:27:40]} {[%emt 00:00:14]} 23. g3 {[%clk 00:21:24]}
{[%emt 00:09:18]} b5 {[%clk 00:19:44]} {[%emt 00:08:26]} 24. Qh5 {[%clk
00:20:53]} {[%emt 00:01:01]} Qc6 {[%clk 00:18:31]} {[%emt 00:01:43]} 25. Qf5
{[%clk 00:19:49]} {[%emt 00:01:33]} a6 {[%clk 00:14:53]} {[%emt 00:04:08]} 26.
Bxd6 {[%clk 00:19:54]} {[%emt 00:00:25]} Qxd6 {[%clk 00:14:53]} {[%emt
00:00:31]} 27. Re8+ {[%clk 00:20:15]} {[%emt 00:00:09]} Rxe8 {[%clk 00:14:20]}
{[%emt 00:01:02]} 28. Rxe8+ {[%clk 00:20:38]} {[%emt 00:00:06]} 1-0

[Event "Klubbmästerskap 2025 Torsdagar"]
[Site "Linköping, Sweden"]
[Date "2025.03.20"]
[Round "7.5"]
[White "Garner, Mårten"]
[Black "Qwarfort, Fredrik"]
[Result "1/2-1/2"]
[TimeControl "90 min + 30 sec/move"]
[WhiteElo "1841"]
[BlackElo "1826"]

1. d4 {[%clk 01:30:57]} {[%emt 00:00:02]} d5 {[%clk 01:30:44]} {[%emt
00:00:16]} 2. c4 {[%clk 01:31:19]} {[%emt 00:00:08]} e6 {[%clk 01:31:06]}
{[%emt 00:00:08]} 3. cxd5 {[%clk 01:31:26]} {[%emt 00:00:24]} exd5 {[%clk
01:31:08]} {[%emt 00:00:29]} 4. Nc3 {[%clk 01:31:49]} {[%emt 00:00:07]} Nf6
{[%clk 01:30:45]} {[%emt 00:00:53]} 5. Bg5 {[%clk 01:32:07]} {[%emt 00:00:11]}
c6 {[%clk 01:30:41]} {[%emt 00:00:35]} 6. e3 {[%clk 01:32:22]} {[%emt
00:00:15]} h6 {[%clk 01:30:58]} {[%emt 00:00:14]} 7. Bh4 {[%clk 01:32:47]}
{[%emt 00:00:05]} Bd6 {[%clk 01:26:44]} {[%emt 00:04:44]} 8. Bd3 {[%clk
01:32:38]} {[%emt 00:00:39]} Nbd7 {[%clk 01:26:36]} {[%emt 00:00:39]} 9. Nf3
{[%clk 01:32:47]} {[%emt 00:00:20]} O-O {[%clk 01:24:53]} {[%emt 00:02:13]} 10.
O-O {[%clk 01:32:57]} {[%emt 00:00:19]} Qe7 {[%clk 01:19:59]} {[%emt 00:05:25]}
11. Qc2 {[%clk 01:30:36]} {[%emt 00:02:49]} g5 {[%clk 01:13:43]} {[%emt
00:06:47]} 12. Bg3 {[%clk 01:28:49]} {[%emt 00:02:16]} Bxg3 {[%clk 01:13:59]}
{[%emt 00:00:15]} 13. hxg3 {[%clk 01:29:10]} {[%emt 00:00:08]} Re8 {[%clk
01:13:59]} {[%emt 00:00:31]} 14. Rab1 {[%clk 01:29:15]} {[%emt 00:00:25]} Ne4
{[%clk 01:13:03]} {[%emt 00:01:27]} 15. b4 {[%clk 01:28:59]} {[%emt 00:00:44]}
Ndf6 {[%clk 01:06:41]} {[%emt 00:06:53]} 16. Ne5 {[%clk 01:28:31]} {[%emt
00:00:57]} Nxc3 {[%clk 01:04:56]} {[%emt 00:02:16]} 17. Qxc3 {[%clk 01:28:52]}
{[%emt 00:00:09]} Ne4 {[%clk 01:04:39]} {[%emt 00:00:47]} 18. Qc2 {[%clk
01:28:21]} {[%emt 00:00:59]} f6 {[%clk 01:01:29]} {[%emt 00:03:42]} 19. Nf3
{[%clk 01:25:26]} {[%emt 00:03:21]} Bf5 {[%clk 00:48:52]} {[%emt 00:13:10]} 20.
Rfc1 {[%clk 01:18:30]} {[%emt 00:07:24]} a6 {[%clk 00:46:25]} {[%emt 00:02:59]}
21. a4 {[%clk 01:18:39]} {[%emt 00:00:21]} Qh7 {[%clk 00:44:37]} {[%emt
00:02:19]} 22. Ne1 {[%clk 01:12:21]} {[%emt 00:06:46]} Nd6 {[%clk 00:31:46]}
{[%emt 00:13:22]} 1/2-1/2

[Event "Klubbmästerskap 2025 Torsdagar"]
[Site "Linköping, Sweden"]
[Date "2025.03.20"]
[Round "7.7"]
[White "Ahlström, Per"]
[Black "Stefanovic, Dragan 1958"]
[Result "1-0"]
[TimeControl "90 min + 30 sec/move"]
[WhiteElo "1820"]
[BlackElo "1791"]

1. Nf3 {[%clk 01:30:53]} {[%emt 00:00:06]} Nf6 {[%clk 01:30:36]} {[%emt
00:00:25]} 2. g3 {[%clk 01:30:26]} {[%emt 00:00:56]} d5 {[%clk 01:29:05]}
{[%emt 00:02:01]} 3. Bg2 {[%clk 01:30:48]} {[%emt 00:00:07]} Bf5 {[%clk
01:28:55]} {[%emt 00:00:40]} 4. c4 {[%clk 01:25:17]} {[%emt 00:06:01]} g6
{[%clk 01:26:20]} {[%emt 00:03:04]} 5. cxd5 {[%clk 01:20:22]} {[%emt 00:05:26]}
Nxd5 {[%clk 01:18:34]} {[%emt 00:08:14]} 6. e4 {[%clk 01:19:52]} {[%emt
00:01:01]} Be6 {[%clk 01:15:08]} {[%emt 00:03:56]} 7. exd5 {[%clk 01:19:54]}
{[%emt 00:00:29]} Bxd5 {[%clk 01:15:28]} {[%emt 00:00:10]} 8. Nc3 {[%clk
01:17:50]} {[%emt 00:02:34]} Bc6 {[%clk 01:15:56]} {[%emt 00:00:03]} 9. d4
{[%clk 01:14:10]} {[%emt 00:04:09]} e6 {[%clk 01:16:02]} {[%emt 00:00:24]} 10.
O-O {[%clk 01:14:02]} {[%emt 00:00:39]} Be7 {[%clk 01:11:12]} {[%emt 00:05:19]}
11. Bh6 {[%clk 01:13:08]} {[%emt 00:01:24]} g5 {[%clk 01:10:32]} {[%emt
00:01:09]} 12. d5 {[%clk 01:08:39]} {[%emt 00:05:01]} exd5 {[%clk 00:59:36]}
{[%emt 00:11:25]} 13. Re1 {[%clk 01:08:38]} {[%emt 00:00:30]} Rg8 {[%clk
00:59:45]} {[%emt 00:00:22]} 14. Bxg5 {[%clk 01:07:41]} {[%emt 00:01:27]} 1-0

[Event "Klubbmästerskap 2025 Torsdagar"]
[Site "Linköping, Sweden"]
[Date "2025.03.20"]
[Round "7.8"]
[White "Lilljebjörn, Erik Gustaf"]
[Black "Davidsson, Asker"]
[Result "1/2-1/2"]
[TimeControl "90 min + 30 sec/move"]
[WhiteElo "1783"]
[BlackElo "1823"]

1. e4 {[%clk 01:30:58]} c5 {[%clk 01:29:46]} {[%emt 00:01:14]} 2. c3 {[%clk
01:31:22]} {[%emt 00:00:07]} d5 {[%clk 01:29:36]} {[%emt 00:00:41]} 3. exd5
{[%clk 01:31:27]} {[%emt 00:00:24]} Nf6 {[%clk 01:22:13]} {[%emt 00:07:53]} 4.
Bb5+ {[%clk 01:29:50]} {[%emt 00:02:07]} Bd7 {[%clk 00:59:27]} {[%emt
00:23:17]} 5. Bxd7+ {[%clk 01:28:15]} {[%emt 00:02:05]} Qxd7 {[%clk 00:52:27]}
{[%emt 00:07:29]} 6. c4 {[%clk 01:28:05]} {[%emt 00:00:41]} Na6 {[%clk
00:49:16]} {[%emt 00:03:41]} 7. Nf3 {[%clk 01:26:11]} {[%emt 00:02:23]} e6
{[%clk 00:47:56]} {[%emt 00:01:49]} 8. O-O {[%clk 01:04:23]} {[%emt 00:22:18]}
exd5 {[%clk 00:39:54]} {[%emt 00:08:32]} 9. Re1+ {[%clk 01:04:07]} {[%emt
00:00:46]} Be7 {[%clk 00:40:19]} {[%emt 00:00:05]} 10. Ne5 {[%clk 01:03:34]}
{[%emt 00:01:04]} Qd6 {[%clk 00:36:41]} {[%emt 00:04:08]} 11. Qa4+ {[%clk
00:59:21]} {[%emt 00:04:43]} Kf8 {[%clk 00:36:42]} {[%emt 00:00:28]} 12. cxd5
{[%clk 00:51:44]} {[%emt 00:08:07]} Nxd5 {[%clk 00:35:24]} {[%emt 00:01:48]} 13.
Nc3 {[%clk 00:47:58]} {[%emt 00:04:16]} Nac7 {[%clk 00:33:08]} {[%emt
00:02:46]} 14. Nxd5 {[%clk 00:41:10]} {[%emt 00:07:18]} Nxd5 {[%clk 00:31:39]}
{[%emt 00:01:59]} 15. d4 {[%clk 00:36:22]} {[%emt 00:05:18]} cxd4 {[%clk
00:29:26]} {[%emt 00:02:44]} 16. Qxd4 {[%clk 00:33:06]} {[%emt 00:03:46]} Nb6
{[%clk 00:23:24]} {[%emt 00:06:32]} 17. Qe4 {[%clk 00:23:55]} {[%emt 00:09:41]}
Qd5 {[%clk 00:20:54]} {[%emt 00:03:00]} 18. Bf4 {[%clk 00:17:41]} {[%emt
00:06:44]} 1/2-1/2